[Event "Early-Titled-Tuesday-Blitz-February-06-2024"]
[Site "Chess.com"]
[Date "2024.02.06"]
[Round "5"]
[White "OK97"]
[Black "chegueps"]
[Result "0-1"]
[WhiteElo "2817"]
[BlackElo "2652"]
[TimeControl "180+1"]
[EndTime "8:54:10 PST"]
[Termination "chegueps won by resignation"]

1. e4 {[%clk 0:03:00.9]} 1... Nf6 {[%clk 0:02:59.5]} 2. e5 {[%clk 0:03:00.7]}
2... Nd5 {[%clk 0:02:59.9]} 3. d4 {[%clk 0:03:01.1]} 3... d6 {[%clk 0:03:00.5]}
4. c4 {[%clk 0:03:01.4]} 4... Nb6 {[%clk 0:03:01.2]} 5. f4 {[%clk 0:03:02]} 5...
dxe5 {[%clk 0:03:01.1]} 6. fxe5 {[%clk 0:03:02.2]} 6... c5 {[%clk 0:03:01.8]} 7.
d5 {[%clk 0:02:56.4]} 7... g6 {[%clk 0:03:01.2]} 8. Nc3 {[%clk 0:02:45.2]} 8...
Bg7 {[%clk 0:03:01.2]} 9. Nf3 {[%clk 0:02:45.4]} 9... O-O {[%clk 0:02:58.7]} 10.
Be3 {[%clk 0:02:38.9]} 10... Bg4 {[%clk 0:02:55.9]} 11. Qd2 {[%clk 0:02:29.6]}
11... N8d7 {[%clk 0:02:35.9]} 12. e6 {[%clk 0:01:41.3]} 12... fxe6 {[%clk
0:02:36.8]} 13. Ng5 {[%clk 0:01:41.4]} 13... exd5 {[%clk 0:02:26.8]} 14. cxd5
{[%clk 0:01:41.1]} 14... Ne5 {[%clk 0:02:19.7]} 15. b3 {[%clk 0:01:29.5]} 15...
c4 {[%clk 0:02:12.6]} 16. h3 {[%clk 0:01:21.5]} 16... Bf5 {[%clk 0:02:12.2]} 17.
Ne6 {[%clk 0:00:55.6]} 17... Bxe6 {[%clk 0:02:04.5]} 18. dxe6 {[%clk 0:00:56.5]}
18... Nd3+ {[%clk 0:02:01.7]} 19. Bxd3 {[%clk 0:00:51.3]} 19... Qxd3 {[%clk
0:01:47.5]} 20. Qxd3 {[%clk 0:00:48.3]} 20... cxd3 {[%clk 0:01:48.4]} 21. Kd2
{[%clk 0:00:48.9]} 21... Rac8 {[%clk 0:01:45.6]} 22. Rac1 {[%clk 0:00:46.1]}
22... Rc6 {[%clk 0:01:09.1]} 23. Bxb6 {[%clk 0:00:22]} 23... Rxb6 {[%clk
0:01:10]} 24. Kxd3 {[%clk 0:00:16.9]} 24... Rd8+ {[%clk 0:01:06.1]} 25. Kc2
{[%clk 0:00:14.2]} 25... Rc6 {[%clk 0:01:06]} 26. Kb2 {[%clk 0:00:10.3]} 26...
Rd2+ {[%clk 0:01:06.4]} 0-1

[Event "Early-Titled-Tuesday-Blitz-February-06-2024"]
[Site "Chess.com"]
[Date "2024.02.06"]
[Round "5"]
[White "Barmen_EV"]
[Black "MikaelyanArman"]
[Result "0-1"]
[WhiteElo "2508"]
[BlackElo "2873"]
[TimeControl "180+1"]
[EndTime "8:54:12 PST"]
[Termination "MikaelyanArman won by checkmate"]

1. e4 {[%clk 0:03:00.2]} 1... a6 {[%clk 0:02:58.1]} 2. a3 {[%clk 0:02:57.7]}
2... b5 {[%clk 0:02:58]} 3. a4 {[%clk 0:02:53.9]} 3... Bb7 {[%clk 0:02:57.1]} 4.
axb5 {[%clk 0:02:54]} 4... axb5 {[%clk 0:02:58]} 5. Rxa8 {[%clk 0:02:53.3]} 5...
Bxa8 {[%clk 0:02:58.9]} 6. Bxb5 {[%clk 0:02:52.5]} 6... Bxe4 {[%clk 0:02:58.9]}
7. Nf3 {[%clk 0:02:52.8]} 7... Nf6 {[%clk 0:02:59.1]} 8. Nc3 {[%clk 0:02:52.5]}
8... Bb7 {[%clk 0:02:57.7]} 9. O-O {[%clk 0:02:51.9]} 9... e6 {[%clk 0:02:58.3]}
10. d4 {[%clk 0:02:48.2]} 10... Be7 {[%clk 0:02:58.6]} 11. Re1 {[%clk
0:02:45.3]} 11... O-O {[%clk 0:02:58.8]} 12. Bf4 {[%clk 0:02:45.2]} 12... Bd6
{[%clk 0:02:50.9]} 13. Ne5 {[%clk 0:02:41.3]} 13... Nc6 {[%clk 0:02:44.1]} 14.
Bxc6 {[%clk 0:02:37.3]} 14... dxc6 {[%clk 0:02:45]} 15. Qf3 {[%clk 0:02:32.7]}
15... Nd5 {[%clk 0:02:41.7]} 16. Nxd5 {[%clk 0:02:27.7]} 16... cxd5 {[%clk
0:02:42.6]} 17. Qg3 {[%clk 0:02:25.6]} 17... Qf6 {[%clk 0:02:22.9]} 18. c3
{[%clk 0:01:20.9]} 18... Ra8 {[%clk 0:02:17.6]} 19. h4 {[%clk 0:01:20.8]} 19...
h6 {[%clk 0:02:13.3]} 20. Re3 {[%clk 0:01:11.3]} 20... Qf5 {[%clk 0:02:04.1]}
21. Bxh6 {[%clk 0:01:01]} 21... Bf8 {[%clk 0:02:00.2]} 22. Rf3 {[%clk
0:00:53.3]} 22... Ra1+ {[%clk 0:01:56.5]} 23. Kh2 {[%clk 0:00:53.4]} 23... Qb1
{[%clk 0:01:57.1]} 24. Qg4 {[%clk 0:00:14.2]} 24... Qh1+ {[%clk 0:01:50.2]} 25.
Kg3 {[%clk 0:00:14.6]} 25... Rg1 {[%clk 0:01:51.1]} 26. Qh3 {[%clk 0:00:13.1]}
26... Qxh3+ {[%clk 0:01:45.1]} 27. Kxh3 {[%clk 0:00:14]} 27... Rh1+ {[%clk
0:01:45.8]} 28. Kg4 {[%clk 0:00:12.3]} 28... f5+ {[%clk 0:01:35.6]} 29. Kh5
{[%clk 0:00:11]} 29... gxh6 {[%clk 0:01:36.1]} 30. Kg6 {[%clk 0:00:10.3]} 30...
Bg7 {[%clk 0:01:29.5]} 31. Nf7 {[%clk 0:00:07.4]} 31... Rxh4 {[%clk 0:01:26.4]}
32. Rg3 {[%clk 0:00:05.7]} 32... Bc6 {[%clk 0:01:24]} 33. Nd8 {[%clk 0:00:01.3]}
33... Be8+ {[%clk 0:01:23.8]} 34. Nf7 {[%clk 0:00:02.2]} 34... Bxf7# {[%clk
0:01:24.3]} 0-1

[Event "Early-Titled-Tuesday-Blitz-February-06-2024"]
[Site "Chess.com"]
[Date "2024.02.06"]
[Round "5"]
[White "Barath1308"]
[Black "atomicmate123"]
[Result "1-0"]
[WhiteElo "2404"]
[BlackElo "2167"]
[TimeControl "180+1"]
[EndTime "8:54:15 PST"]
[Termination "Barath1308 won by resignation"]

1. Nf3 {[%clk 0:03:00.9]} 1... d5 {[%clk 0:02:59.8]} 2. g3 {[%clk 0:03:00.3]}
2... c5 {[%clk 0:02:59.2]} 3. Bg2 {[%clk 0:03:00.8]} 3... Nc6 {[%clk 0:02:58.7]}
4. O-O {[%clk 0:03:01]} 4... Nf6 {[%clk 0:02:58.9]} 5. b3 {[%clk 0:03:01.3]}
5... Bf5 {[%clk 0:02:58.8]} 6. Bb2 {[%clk 0:03:01.9]} 6... e6 {[%clk 0:02:58.5]}
7. d3 {[%clk 0:03:02.5]} 7... Be7 {[%clk 0:02:57.7]} 8. Nbd2 {[%clk 0:03:03]}
8... h6 {[%clk 0:02:57]} 9. Ne5 {[%clk 0:03:03.5]} 9... Qc7 {[%clk 0:02:48.6]}
10. Ndf3 {[%clk 0:02:56.9]} 10... O-O {[%clk 0:02:46.9]} 11. Nxc6 {[%clk
0:02:56.6]} 11... bxc6 {[%clk 0:02:43.9]} 12. e3 {[%clk 0:02:56.7]} 12... Rab8
{[%clk 0:02:40.2]} 13. Ne5 {[%clk 0:02:54.3]} 13... Bd6 {[%clk 0:02:35.2]} 14.
f4 {[%clk 0:02:54.3]} 14... Bxe5 {[%clk 0:02:29.1]} 15. Bxe5 {[%clk 0:02:53.5]}
15... Qa5 {[%clk 0:02:23.4]} 16. Bxb8 {[%clk 0:02:52.3]} 16... Rxb8 {[%clk
0:02:23.2]} 17. Qe2 {[%clk 0:02:52.5]} 17... Qc3 {[%clk 0:02:19]} 18. Rad1
{[%clk 0:02:41.6]} 18... Bg4 {[%clk 0:02:08.7]} 19. Bf3 {[%clk 0:02:41.3]} 19...
Bh3 {[%clk 0:02:08.4]} 20. Rf2 {[%clk 0:02:39.2]} 20... Rb6 {[%clk 0:01:58.9]}
21. Qd2 {[%clk 0:02:38.3]} 21... Qb2 {[%clk 0:01:54.4]} 22. Qa5 {[%clk
0:02:28.4]} 22... Ng4 {[%clk 0:01:38]} 23. Re2 {[%clk 0:02:19.5]} 23... d4
{[%clk 0:01:33.2]} 24. c4 {[%clk 0:02:11.8]} 24... Qc3 {[%clk 0:01:09.5]} 25.
Qxc3 {[%clk 0:02:11.1]} 25... dxc3 {[%clk 0:01:09.8]} 26. Rc1 {[%clk 0:02:12]}
26... a5 {[%clk 0:00:51.9]} 27. Rxc3 {[%clk 0:02:11.6]} 27... a4 {[%clk
0:00:52.1]} 28. d4 {[%clk 0:02:10.5]} 28... axb3 {[%clk 0:00:32.8]} 29. Rxb3
{[%clk 0:02:05]} 29... Ra6 {[%clk 0:00:32.5]} 30. dxc5 {[%clk 0:02:03.3]} 30...
Ra7 {[%clk 0:00:20.7]} 31. Bxc6 {[%clk 0:02:01.3]} 31... Rc7 {[%clk 0:00:19.1]}
32. Rb6 {[%clk 0:01:53.6]} 32... Kh7 {[%clk 0:00:18.6]} 33. a4 {[%clk
0:01:50.7]} 33... e5 {[%clk 0:00:19]} 34. a5 {[%clk 0:01:50]} 34... exf4 {[%clk
0:00:17.7]} 35. exf4 {[%clk 0:01:50.3]} 35... Ra7 {[%clk 0:00:17.1]} 36. a6
{[%clk 0:01:50.1]} 36... Nf6 {[%clk 0:00:14.9]} 37. Bb5 {[%clk 0:01:50]} 37...
Nd7 {[%clk 0:00:14.2]} 38. Rb7 {[%clk 0:01:49.7]} 38... Rxb7 {[%clk 0:00:07.1]}
39. axb7 {[%clk 0:01:50.6]} 39... Nb8 {[%clk 0:00:03.9]} 40. Re8 {[%clk
0:01:50]} 1-0

[Event "Early-Titled-Tuesday-Blitz-February-06-2024"]
[Site "Chess.com"]
[Date "2024.02.06"]
[Round "5"]
[White "The_Straightforward_Rook"]
[Black "chezzgirl04"]
[Result "1-0"]
[WhiteElo "2390"]
[BlackElo "2171"]
[TimeControl "180+1"]
[EndTime "8:54:16 PST"]
[Termination "The_Straightforward_Rook won by resignation"]

1. e4 {[%clk 0:02:57]} 1... e5 {[%clk 0:02:56.4]} 2. Nf3 {[%clk 0:02:55.6]} 2...
Nc6 {[%clk 0:02:49.3]} 3. Bc4 {[%clk 0:02:56]} 3... Bc5 {[%clk 0:02:48.3]} 4. d3
{[%clk 0:02:55.6]} 4... Nf6 {[%clk 0:02:48.3]} 5. Bg5 {[%clk 0:02:55.9]} 5... d6
{[%clk 0:02:47.6]} 6. c3 {[%clk 0:02:54.7]} 6... O-O {[%clk 0:02:47.5]} 7. Nbd2
{[%clk 0:02:52.4]} 7... Be6 {[%clk 0:02:46.5]} 8. b4 {[%clk 0:02:48.5]} 8... Bb6
{[%clk 0:02:36]} 9. a4 {[%clk 0:02:48.3]} 9... h6 {[%clk 0:02:31]} 10. Bh4
{[%clk 0:02:47.6]} 10... g5 {[%clk 0:02:28.6]} 11. Nxg5 {[%clk 0:02:46.1]} 11...
hxg5 {[%clk 0:02:26.6]} 12. Bxg5 {[%clk 0:02:47]} 12... Kg7 {[%clk 0:02:24.6]}
13. a5 {[%clk 0:02:42.9]} 13... Bxf2+ {[%clk 0:02:11.3]} 14. Kxf2 {[%clk
0:02:42.7]} 14... Ng4+ {[%clk 0:02:09.5]} 15. Qxg4 {[%clk 0:02:43.3]} 15... Bxg4
{[%clk 0:02:09.3]} 16. Bxd8 {[%clk 0:02:43.4]} 16... Rfxd8 {[%clk 0:02:05]} 17.
a6 {[%clk 0:02:37.1]} 17... bxa6 {[%clk 0:02:02.3]} 18. Bd5 {[%clk 0:02:33.5]}
18... Bd7 {[%clk 0:02:00.5]} 19. Rxa6 {[%clk 0:02:32.8]} 19... Nb8 {[%clk
0:01:46.1]} 20. Rxd6 {[%clk 0:02:22.6]} 20... cxd6 {[%clk 0:01:41.3]} 21. Bxa8
{[%clk 0:02:22.7]} 21... Na6 {[%clk 0:01:38.4]} 22. Bd5 {[%clk 0:02:20.9]} 22...
Nc7 {[%clk 0:01:25.8]} 23. c4 {[%clk 0:02:14.6]} 23... Nxd5 {[%clk 0:01:20.8]}
24. exd5 {[%clk 0:02:14.6]} 24... Bf5 {[%clk 0:01:18.1]} 25. Ke3 {[%clk
0:02:11.8]} 25... Rb8 {[%clk 0:01:11.2]} 26. b5 {[%clk 0:02:11.2]} 26... Bg6
{[%clk 0:01:09.1]} 27. Ra1 {[%clk 0:02:10.7]} 27... Rb7 {[%clk 0:01:02.4]} 28.
Ra6 {[%clk 0:02:10.3]} 28... Rd7 {[%clk 0:01:01.3]} 29. Ne4 {[%clk 0:02:09]}
29... f5 {[%clk 0:00:50.9]} 30. Nxd6 {[%clk 0:02:07.6]} 30... f4+ {[%clk
0:00:50.2]} 31. Kd2 {[%clk 0:02:06.2]} 31... Kg8 {[%clk 0:00:40.2]} 32. Ne4
{[%clk 0:02:05.1]} 32... Bxe4 {[%clk 0:00:17.9]} 33. dxe4 {[%clk 0:02:06]} 33...
Rg7 {[%clk 0:00:18.1]} 34. g3 {[%clk 0:02:06.4]} 34... Rh7 {[%clk 0:00:15.2]}
35. gxf4 {[%clk 0:02:05.5]} 35... Rxh2+ {[%clk 0:00:14.8]} 36. Ke3 {[%clk
0:02:04.6]} 36... Rh3+ {[%clk 0:00:14.5]} 37. Kf2 {[%clk 0:02:04.5]} 37... exf4
{[%clk 0:00:14.7]} 38. Rxa7 {[%clk 0:02:02.4]} 38... Re3 {[%clk 0:00:12.1]} 39.
Re7 {[%clk 0:02:00.6]} 39... Rc3 {[%clk 0:00:12.1]} 40. Rc7 {[%clk 0:01:58.6]}
40... Re3 {[%clk 0:00:11.8]} 41. b6 {[%clk 0:01:58.8]} 41... Rxe4 {[%clk
0:00:09.6]} 42. b7 {[%clk 0:01:58.7]} 42... Re8 {[%clk 0:00:09.1]} 43. Rc8
{[%clk 0:01:58.7]} 43... Kf7 {[%clk 0:00:08]} 44. b8=Q {[%clk 0:01:58.5]} 44...
Rxc8 {[%clk 0:00:05.4]} 45. Qxc8 {[%clk 0:01:59.4]} 1-0

[Event "Early-Titled-Tuesday-Blitz-February-06-2024"]
[Site "Chess.com"]
[Date "2024.02.06"]
[Round "5"]
[White "falzehope0"]
[Black "Ariadna_Atreides"]
[Result "1-0"]
[WhiteElo "2361"]
[BlackElo "2168"]
[TimeControl "180+1"]
[EndTime "8:54:16 PST"]
[Termination "falzehope0 won on time"]

1. d4 {[%clk 0:03:00.9]} 1... Nf6 {[%clk 0:02:58.6]} 2. e3 {[%clk 0:03:00.2]}
2... e6 {[%clk 0:02:59.2]} 3. Bd3 {[%clk 0:02:56.6]} 3... b6 {[%clk 0:02:57.7]}
4. f4 {[%clk 0:02:56.3]} 4... Bb7 {[%clk 0:02:56.7]} 5. Nf3 {[%clk 0:02:56.4]}
5... c5 {[%clk 0:02:50.7]} 6. O-O {[%clk 0:02:55.9]} 6... Be7 {[%clk 0:02:50.1]}
7. Nbd2 {[%clk 0:02:55.4]} 7... O-O {[%clk 0:02:48.5]} 8. c3 {[%clk 0:02:54.5]}
8... d5 {[%clk 0:02:45.5]} 9. Ne5 {[%clk 0:02:54]} 9... Ne4 {[%clk 0:02:39.1]}
10. Qg4 {[%clk 0:02:44.8]} 10... f5 {[%clk 0:02:28.3]} 11. Qh3 {[%clk
0:02:44.4]} 11... Nd7 {[%clk 0:02:23.5]} 12. g4 {[%clk 0:02:42.2]} 12... Nxe5
{[%clk 0:02:15.4]} 13. fxe5 {[%clk 0:02:40.1]} 13... Qe8 {[%clk 0:01:42.2]} 14.
gxf5 {[%clk 0:02:36.5]} 14... exf5 {[%clk 0:01:41.9]} 15. Nxe4 {[%clk
0:02:21.3]} 15... fxe4 {[%clk 0:01:25.8]} 16. Rxf8+ {[%clk 0:02:15.2]} 16...
Bxf8 {[%clk 0:01:17.4]} 17. Bf1 {[%clk 0:02:10.7]} 17... Qg6+ {[%clk 0:01:15.9]}
18. Qg3 {[%clk 0:02:07.5]} 18... Qxg3+ {[%clk 0:00:55.7]} 19. hxg3 {[%clk
0:02:08.4]} 19... c4 {[%clk 0:00:19.6]} 20. b3 {[%clk 0:02:00.3]} 20... b5
{[%clk 0:00:18.7]} 21. a4 {[%clk 0:01:57.5]} 21... bxa4 {[%clk 0:00:15.8]} 22.
bxc4 {[%clk 0:01:55.5]} 22... Rc8 {[%clk 0:00:10.6]} 23. c5 {[%clk 0:01:49.8]}
23... Bc6 {[%clk 0:00:09.7]} 24. c4 {[%clk 0:01:45.3]} 24... dxc4 {[%clk
0:00:06.8]} 25. Bxc4+ {[%clk 0:01:44.5]} 25... Kh8 {[%clk 0:00:07.7]} 26. d5
{[%clk 0:01:35.5]} 26... Bxc5 {[%clk 0:00:06.3]} 27. dxc6 {[%clk 0:01:32.6]}
27... Rxc6 {[%clk 0:00:07.2]} 28. Bd5 {[%clk 0:01:31.5]} 28... Rc7 {[%clk
0:00:06.1]} 29. Ba3 {[%clk 0:01:25.3]} 29... Bxe3+ {[%clk 0:00:05.2]} 30. Kg2
{[%clk 0:01:22.8]} 30... Bd4 {[%clk 0:00:04.5]} 31. Rf1 {[%clk 0:01:20.1]} 31...
Rc2+ {[%clk 0:00:01.9]} 32. Kh3 {[%clk 0:01:19.6]} 32... h6 {[%clk 0:00:02.2]}
33. Rf8+ {[%clk 0:01:17.4]} 33... Kh7 {[%clk 0:00:02.6]} 34. Bxe4+ {[%clk
0:01:18.3]} 1-0

[Event "Early-Titled-Tuesday-Blitz-February-06-2024"]
[Site "Chess.com"]
[Date "2024.02.06"]
[Round "5"]
[White "Kildepiotr"]
[Black "SHIVACalypso"]
[Result "1-0"]
[WhiteElo "2684"]
[BlackElo "2511"]
[TimeControl "180+1"]
[EndTime "8:54:18 PST"]
[Termination "Kildepiotr won by resignation"]

1. Nf3 {[%clk 0:03:00.9]} 1... Nf6 {[%clk 0:02:59.3]} 2. g3 {[%clk 0:03:01.1]}
2... g6 {[%clk 0:02:58.6]} 3. Bg2 {[%clk 0:03:01.7]} 3... Bg7 {[%clk 0:02:59.3]}
4. O-O {[%clk 0:03:02.4]} 4... O-O {[%clk 0:02:59.9]} 5. d4 {[%clk 0:03:03]}
5... d5 {[%clk 0:03:00.5]} 6. c4 {[%clk 0:03:03.2]} 6... c6 {[%clk 0:02:59.5]}
7. Nc3 {[%clk 0:03:03.5]} 7... dxc4 {[%clk 0:02:59.3]} 8. a4 {[%clk 0:03:03.6]}
8... a5 {[%clk 0:02:51.4]} 9. e3 {[%clk 0:03:02.8]} 9... Na6 {[%clk 0:02:51]}
10. Ne5 {[%clk 0:03:01.9]} 10... Be6 {[%clk 0:02:48.1]} 11. Qe2 {[%clk
0:03:01.5]} 11... Nb4 {[%clk 0:02:43.5]} 12. Nxc4 {[%clk 0:03:01]} 12... Nfd5
{[%clk 0:02:40.4]} 13. Bd2 {[%clk 0:02:56.2]} 13... Qd7 {[%clk 0:02:32.5]} 14.
Ne4 {[%clk 0:02:55.6]} 14... Bh3 {[%clk 0:02:23.9]} 15. Nc5 {[%clk 0:02:54.8]}
15... Qc8 {[%clk 0:02:24.2]} 16. Bxh3 {[%clk 0:02:49.7]} 16... Qxh3 {[%clk
0:02:25.1]} 17. Nxb7 {[%clk 0:02:49.8]} 17... Nf6 {[%clk 0:02:05.3]} 18. f3
{[%clk 0:02:49.1]} 18... Nh5 {[%clk 0:01:55.2]} 19. g4 {[%clk 0:02:34]} 19...
Nc2 {[%clk 0:01:39.5]} 20. gxh5 {[%clk 0:02:28.6]} 20... Nxa1 {[%clk 0:01:39.1]}
21. Rxa1 {[%clk 0:02:28.6]} 21... gxh5 {[%clk 0:01:30.8]} 22. Nbxa5 {[%clk
0:02:22.1]} 22... Kh8 {[%clk 0:01:30.2]} 23. Kh1 {[%clk 0:02:20.3]} 23... Rg8
{[%clk 0:01:30.2]} 24. Nxc6 {[%clk 0:02:07.4]} 24... Bf6 {[%clk 0:01:23.4]} 25.
N6e5 {[%clk 0:02:04.3]} 25... Rg7 {[%clk 0:01:18.7]} 26. a5 {[%clk 0:01:50.4]}
26... Rag8 {[%clk 0:01:18.6]} 27. a6 {[%clk 0:01:46.7]} 27... Bxe5 {[%clk
0:01:14.3]} 28. Nxe5 {[%clk 0:01:46.2]} 28... f6 {[%clk 0:01:14.5]} 29. a7
{[%clk 0:01:38.9]} 29... Qc8 {[%clk 0:00:39.5]} 30. Ng4 {[%clk 0:01:25.8]} 30...
Qa8 {[%clk 0:00:30.9]} 31. Nh6 {[%clk 0:01:23.8]} 31... Rc8 {[%clk 0:00:18.6]}
32. e4 {[%clk 0:01:23.5]} 32... Rc7 {[%clk 0:00:15.7]} 33. Qb5 {[%clk
0:01:15.6]} 33... Rg6 {[%clk 0:00:13.1]} 34. Qb8+ {[%clk 0:01:14.5]} 34... Rc8
{[%clk 0:00:12.9]} 35. Qxc8+ {[%clk 0:01:13.2]} 35... Qxc8 {[%clk 0:00:12.9]}
36. a8=Q {[%clk 0:01:13.5]} 1-0

[Event "Early-Titled-Tuesday-Blitz-February-06-2024"]
[Site "Chess.com"]
[Date "2024.02.06"]
[Round "5"]
[White "NFChess13"]
[Black "noblerone"]
[Result "1-0"]
[WhiteElo "2661"]
[BlackElo "2460"]
[TimeControl "180+1"]
[EndTime "8:54:23 PST"]
[Termination "NFChess13 won by resignation"]

1. b3 {[%clk 0:03:00.9]} 1... d5 {[%clk 0:02:54.7]} 2. Bb2 {[%clk 0:03:00.6]}
2... Nf6 {[%clk 0:02:55]} 3. Nf3 {[%clk 0:03:00.8]} 3... c5 {[%clk 0:02:55.3]}
4. e3 {[%clk 0:03:00.9]} 4... Nc6 {[%clk 0:02:55.6]} 5. Bb5 {[%clk 0:03:01.2]}
5... Bd7 {[%clk 0:02:52.9]} 6. O-O {[%clk 0:03:00]} 6... e6 {[%clk 0:02:48.2]}
7. Re1 {[%clk 0:02:56.3]} 7... Be7 {[%clk 0:02:46.6]} 8. Bf1 {[%clk 0:02:52.1]}
8... O-O {[%clk 0:02:46.4]} 9. d3 {[%clk 0:02:52.4]} 9... Bd6 {[%clk 0:02:37.5]}
10. Nbd2 {[%clk 0:02:51.3]} 10... e5 {[%clk 0:02:37]} 11. e4 {[%clk 0:02:51.2]}
11... d4 {[%clk 0:02:34.3]} 12. Nc4 {[%clk 0:02:50.3]} 12... Qe7 {[%clk
0:02:30.8]} 13. a4 {[%clk 0:02:49]} 13... b6 {[%clk 0:02:29.1]} 14. g3 {[%clk
0:02:44.6]} 14... Rab8 {[%clk 0:02:28.9]} 15. Bg2 {[%clk 0:02:43.5]} 15... a6
{[%clk 0:02:28.9]} 16. Bc1 {[%clk 0:02:40.1]} 16... b5 {[%clk 0:02:28.1]} 17.
axb5 {[%clk 0:02:40.3]} 17... axb5 {[%clk 0:02:29]} 18. Na5 {[%clk 0:02:32.4]}
18... Nxa5 {[%clk 0:02:25.7]} 19. Rxa5 {[%clk 0:02:33.3]} 19... c4 {[%clk
0:02:26.4]} 20. Bd2 {[%clk 0:02:19.4]} 20... Rfe8 {[%clk 0:02:18.2]} 21. bxc4
{[%clk 0:02:16.2]} 21... bxc4 {[%clk 0:02:17.9]} 22. dxc4 {[%clk 0:02:12]} 22...
Rbc8 {[%clk 0:02:09]} 23. Bf1 {[%clk 0:02:03.5]} 23... Bg4 {[%clk 0:02:08.4]}
24. h3 {[%clk 0:02:01.5]} 24... Bd7 {[%clk 0:01:14.3]} 25. Kh2 {[%clk
0:01:38.8]} 25... Qd8 {[%clk 0:01:10.2]} 26. Bd3 {[%clk 0:01:32.3]} 26... Ra8
{[%clk 0:00:58.1]} 27. Qa1 {[%clk 0:01:29.4]} 27... Rxa5 {[%clk 0:00:54.8]} 28.
Qxa5 {[%clk 0:01:26.2]} 28... Qc8 {[%clk 0:00:55.3]} 29. Bf1 {[%clk 0:01:19.1]}
29... Qc6 {[%clk 0:00:48.7]} 30. Bd3 {[%clk 0:00:57.6]} 30... h6 {[%clk
0:00:46.5]} 31. Nh4 {[%clk 0:00:50.7]} 31... Qc8 {[%clk 0:00:42.4]} 32. Nf5
{[%clk 0:00:47.9]} 32... Bxf5 {[%clk 0:00:38.8]} 33. exf5 {[%clk 0:00:48.8]}
33... e4 {[%clk 0:00:39.4]} 34. Bf1 {[%clk 0:00:49.5]} 34... Qxf5 {[%clk
0:00:31.4]} 35. Qxf5 {[%clk 0:00:48.3]} 1-0

[Event "Early-Titled-Tuesday-Blitz-February-06-2024"]
[Site "Chess.com"]
[Date "2024.02.06"]
[Round "5"]
[White "vishwa_vijeta"]
[Black "AlexeiShirov"]
[Result "0-1"]
[WhiteElo "2566"]
[BlackElo "2782"]
[TimeControl "180+1"]
[EndTime "8:54:24 PST"]
[Termination "AlexeiShirov won by resignation"]

1. e4 {[%clk 0:02:52.7]} 1... e5 {[%clk 0:02:58.9]} 2. Nf3 {[%clk 0:02:51.8]}
2... Nc6 {[%clk 0:02:58.9]} 3. d4 {[%clk 0:02:51.5]} 3... exd4 {[%clk
0:02:58.1]} 4. Bc4 {[%clk 0:02:51.5]} 4... Bc5 {[%clk 0:02:54.8]} 5. c3 {[%clk
0:02:48.2]} 5... Nf6 {[%clk 0:02:54]} 6. e5 {[%clk 0:02:47.1]} 6... d5 {[%clk
0:02:52.2]} 7. Bb5 {[%clk 0:02:45.8]} 7... Ne4 {[%clk 0:02:51.3]} 8. cxd4 {[%clk
0:02:45.4]} 8... Bb6 {[%clk 0:02:50.8]} 9. Nc3 {[%clk 0:02:45.1]} 9... O-O
{[%clk 0:02:43.1]} 10. O-O {[%clk 0:02:43.6]} 10... Bg4 {[%clk 0:02:40.2]} 11.
Be3 {[%clk 0:02:40.7]} 11... f6 {[%clk 0:02:11.3]} 12. exf6 {[%clk 0:01:57.7]}
12... Nxf6 {[%clk 0:01:59]} 13. h3 {[%clk 0:01:29.9]} 13... Bxf3 {[%clk
0:01:56.5]} 14. Qxf3 {[%clk 0:01:24.1]} 14... Nxd4 {[%clk 0:01:56]} 15. Bxd4
{[%clk 0:01:22.6]} 15... Bxd4 {[%clk 0:01:55.2]} 16. Rad1 {[%clk 0:01:20.4]}
16... Ne4 {[%clk 0:01:51.4]} 17. Qh5 {[%clk 0:00:54.7]} 17... Bxf2+ {[%clk
0:01:40.6]} 18. Rxf2 {[%clk 0:00:54.3]} 18... Nxf2 {[%clk 0:01:40.2]} 19. Rxd5
{[%clk 0:00:53.7]} 19... Qf6 {[%clk 0:01:38.6]} 20. Bc4 {[%clk 0:00:51.7]} 20...
Kh8 {[%clk 0:01:37.5]} 21. Bb3 {[%clk 0:00:33]} 21... Rae8 {[%clk 0:01:33.9]}
22. Ne2 {[%clk 0:00:27.5]} 22... Nxh3+ {[%clk 0:01:22.5]} 23. Qxh3 {[%clk
0:00:27]} 23... Rxe2 {[%clk 0:01:20.7]} 24. Rh5 {[%clk 0:00:22.1]} 24... h6
{[%clk 0:01:19.7]} 25. Bd5 {[%clk 0:00:17.9]} 25... c6 {[%clk 0:01:09.4]} 26.
Bf3 {[%clk 0:00:17.3]} 26... Rxb2 {[%clk 0:01:08.6]} 27. Qg4 {[%clk 0:00:14.8]}
27... Rb5 {[%clk 0:01:07.7]} 28. Rxb5 {[%clk 0:00:12.8]} 28... cxb5 {[%clk
0:01:07.5]} 29. Qd7 {[%clk 0:00:12.6]} 29... b4 {[%clk 0:01:03.2]} 0-1

[Event "Early-Titled-Tuesday-Blitz-February-06-2024"]
[Site "Chess.com"]
[Date "2024.02.06"]
[Round "5"]
[White "Smiechu"]
[Black "ValiantCeleb"]
[Result "1-0"]
[WhiteElo "2427"]
[BlackElo "2257"]
[TimeControl "180+1"]
[EndTime "8:54:26 PST"]
[Termination "Smiechu won on time"]

1. e4 {[%clk 0:02:57]} 1... c5 {[%clk 0:02:58.6]} 2. Nf3 {[%clk 0:02:56.1]} 2...
e6 {[%clk 0:02:58.6]} 3. d4 {[%clk 0:02:55.7]} 3... cxd4 {[%clk 0:02:59.5]} 4.
Nxd4 {[%clk 0:02:54.9]} 4... a6 {[%clk 0:02:52.6]} 5. Bd3 {[%clk 0:02:53.5]}
5... Bc5 {[%clk 0:02:51.3]} 6. Nb3 {[%clk 0:02:52.6]} 6... Ba7 {[%clk
0:02:51.3]} 7. O-O {[%clk 0:02:52.9]} 7... Nc6 {[%clk 0:02:51]} 8. Qe2 {[%clk
0:02:53.4]} 8... Nge7 {[%clk 0:02:50.1]} 9. Nc3 {[%clk 0:02:53.9]} 9... O-O
{[%clk 0:02:48.7]} 10. Be3 {[%clk 0:02:54]} 10... Bxe3 {[%clk 0:02:47.9]} 11.
Qxe3 {[%clk 0:02:53.8]} 11... d5 {[%clk 0:02:48.4]} 12. exd5 {[%clk 0:02:52.8]}
12... Nxd5 {[%clk 0:02:45.2]} 13. Nxd5 {[%clk 0:02:52.5]} 13... Qxd5 {[%clk
0:02:42.2]} 14. Rad1 {[%clk 0:02:52.3]} 14... Qh5 {[%clk 0:02:36.7]} 15. Be4
{[%clk 0:02:49.1]} 15... Ne5 {[%clk 0:02:18.9]} 16. h3 {[%clk 0:02:38.5]} 16...
Rb8 {[%clk 0:01:45]} 17. Qc5 {[%clk 0:02:33.5]} 17... b6 {[%clk 0:01:32.8]} 18.
Qc7 {[%clk 0:02:31.6]} 18... Bd7 {[%clk 0:01:05.7]} 19. Rxd7 {[%clk 0:02:27.2]}
19... Nxd7 {[%clk 0:01:02.3]} 20. Qxd7 {[%clk 0:02:26.9]} 20... Qe5 {[%clk
0:00:55.3]} 21. Qd4 {[%clk 0:02:20.2]} 21... Qxd4 {[%clk 0:00:44.1]} 22. Nxd4
{[%clk 0:02:21.1]} 22... Rbd8 {[%clk 0:00:44.1]} 23. c3 {[%clk 0:02:20.8]} 23...
e5 {[%clk 0:00:39.4]} 24. Nf3 {[%clk 0:02:19.7]} 24... f5 {[%clk 0:00:32.1]} 25.
Bb7 {[%clk 0:02:19.3]} 25... e4 {[%clk 0:00:15.5]} 26. Nd4 {[%clk 0:02:18.2]}
26... Rf6 {[%clk 0:00:10.1]} 27. Bxa6 {[%clk 0:02:17.3]} 27... g5 {[%clk
0:00:06.6]} 28. Bc4+ {[%clk 0:02:12.6]} 28... Kh8 {[%clk 0:00:06.7]} 29. b3
{[%clk 0:02:04.8]} 29... f4 {[%clk 0:00:05.8]} 30. Re1 {[%clk 0:02:03.4]} 30...
Re8 {[%clk 0:00:04.9]} 31. a4 {[%clk 0:01:36]} 31... h5 {[%clk 0:00:03.8]} 32.
Bd5 {[%clk 0:01:28]} 32... e3 {[%clk 0:00:03]} 33. fxe3 {[%clk 0:01:28.2]} 33...
fxe3 {[%clk 0:00:03.1]} 34. Bf3 {[%clk 0:01:27.6]} 34... Rh6 {[%clk 0:00:01.8]}
35. Nc2 {[%clk 0:01:26.9]} 35... Rc6 {[%clk 0:00:01.6]} 36. c4 {[%clk
0:01:26.6]} 36... Rce6 {[%clk 0:00:01.4]} 37. Bxh5 {[%clk 0:01:24]} 1-0